[Event "Late-Titled-Tuesday-Blitz-April-30-2024"]
[Site "Chess.com"]
[Date "2024.04.30"]
[Round "7"]
[White "shimastream"]
[Black "jefferyx"]
[Result "0-1"]
[WhiteElo "3040"]
[BlackElo "3116"]
[TimeControl "180+1"]
[EndTime "15:18:34 PDT"]
[Termination "jefferyx won on time"]

1. e4 {[%clk 0:02:41.7]} 1... c5 {[%clk 0:02:59.9]} 2. d4 {[%clk 0:02:42.1]}
2... cxd4 {[%clk 0:03:00]} 3. Qxd4 {[%clk 0:02:43]} 3... Nf6 {[%clk 0:02:52.9]}
4. Nc3 {[%clk 0:02:42.9]} 4... d6 {[%clk 0:02:50.7]} 5. Nf3 {[%clk 0:02:42.6]}
5... a6 {[%clk 0:02:50]} 6. Be2 {[%clk 0:02:40]} 6... g6 {[%clk 0:02:48.1]} 7.
O-O {[%clk 0:02:34.2]} 7... Bg7 {[%clk 0:02:48.1]} 8. Qd3 {[%clk 0:02:33]} 8...
O-O {[%clk 0:02:47.6]} 9. Bg5 {[%clk 0:02:32.3]} 9... Bg4 {[%clk 0:02:45.8]} 10.
Rad1 {[%clk 0:02:29.2]} 10... Nbd7 {[%clk 0:02:45.7]} 11. h3 {[%clk 0:02:27.8]}
11... Bxf3 {[%clk 0:02:45.6]} 12. Qxf3 {[%clk 0:02:28]} 12... h6 {[%clk
0:02:45.5]} 13. Bf4 {[%clk 0:02:25.6]} 13... Qb6 {[%clk 0:02:43]} 14. b3 {[%clk
0:02:11.8]} 14... Qc5 {[%clk 0:02:42.5]} 15. Rd2 {[%clk 0:01:54.4]} 15... Ne5
{[%clk 0:02:14.9]} 16. Bxe5 {[%clk 0:01:44.7]} 16... Qxe5 {[%clk 0:02:13.3]} 17.
a4 {[%clk 0:01:39.4]} 17... Nh7 {[%clk 0:02:01.4]} 18. Nd5 {[%clk 0:01:26]}
18... Ng5 {[%clk 0:02:01.2]} 19. Qe3 {[%clk 0:01:26.6]} 19... e6 {[%clk
0:01:45.6]} 20. Nb6 {[%clk 0:01:10.3]} 20... Rad8 {[%clk 0:01:32.9]} 21. Nc4
{[%clk 0:00:54.9]} 21... Qxe4 {[%clk 0:01:28]} 22. Nxd6 {[%clk 0:00:54.7]} 22...
Qxe3 {[%clk 0:01:24.4]} 23. fxe3 {[%clk 0:00:55.6]} 23... Rd7 {[%clk 0:01:07.9]}
24. Rfd1 {[%clk 0:00:52.6]} 24... Rfd8 {[%clk 0:01:07.5]} 25. h4 {[%clk
0:00:48.2]} 25... Nh7 {[%clk 0:00:56.5]} 26. Bf3 {[%clk 0:00:45.5]} 26... Bf6
{[%clk 0:00:38.7]} 27. h5 {[%clk 0:00:38.5]} 27... Ng5 {[%clk 0:00:36.5]} 28.
Bxb7 {[%clk 0:00:34.3]} 28... a5 {[%clk 0:00:13]} 29. hxg6 {[%clk 0:00:34]}
29... fxg6 {[%clk 0:00:13]} 30. Bc6 {[%clk 0:00:31.3]} 30... Rc7 {[%clk
0:00:13.3]} 31. Bb5 {[%clk 0:00:30.4]} 31... Be7 {[%clk 0:00:07.4]} 32. Bc4
{[%clk 0:00:29.7]} 32... Kg7 {[%clk 0:00:04.1]} 33. Nb5 {[%clk 0:00:24.2]} 33...
Rxd2 {[%clk 0:00:04.1]} 34. Rxd2 {[%clk 0:00:25.1]} 34... Rb7 {[%clk 0:00:04.7]}
35. Nd4 {[%clk 0:00:24.6]} 35... Kf6 {[%clk 0:00:04.6]} 36. Rf2+ {[%clk
0:00:24.2]} 36... Ke5 {[%clk 0:00:05.2]} 37. Rd2 {[%clk 0:00:12]} 37... Bc5
{[%clk 0:00:03.5]} 38. Kf1 {[%clk 0:00:10.1]} 38... Ne4 {[%clk 0:00:03.5]} 39.
Rd1 {[%clk 0:00:10.1]} 39... Rf7+ {[%clk 0:00:03.5]} 40. Nf3+ {[%clk 0:00:09.6]}
40... Kf6 {[%clk 0:00:04.2]} 41. Ke2 {[%clk 0:00:10.1]} 41... Nc3+ {[%clk
0:00:04]} 42. Kd2 {[%clk 0:00:10.3]} 42... Nxd1 {[%clk 0:00:04.9]} 43. Kxd1
{[%clk 0:00:11.2]} 43... Bxe3 {[%clk 0:00:05.7]} 44. Ke2 {[%clk 0:00:11]} 44...
Bc5 {[%clk 0:00:06.1]} 45. Nd2 {[%clk 0:00:11.5]} 45... Ke5 {[%clk 0:00:06.7]}
46. c3 {[%clk 0:00:10.9]} 46... h5 {[%clk 0:00:05.5]} 47. Bd3 {[%clk 0:00:07.3]}
47... g5 {[%clk 0:00:04.9]} 48. Nc4+ {[%clk 0:00:05.9]} 48... Kf4 {[%clk
0:00:05.6]} 49. Nxa5 {[%clk 0:00:06.5]} 49... g4 {[%clk 0:00:05.9]} 50. b4
{[%clk 0:00:06.7]} 50... Bb6 {[%clk 0:00:02.9]} 51. Nc4 {[%clk 0:00:06.8]} 51...
Ba7 {[%clk 0:00:03.5]} 52. a5 {[%clk 0:00:07.2]} 52... h4 {[%clk 0:00:03.9]} 53.
b5 {[%clk 0:00:07.5]} 53... h3 {[%clk 0:00:04.5]} 54. gxh3 {[%clk 0:00:07.7]}
54... gxh3 {[%clk 0:00:05.4]} 55. Nd6 {[%clk 0:00:06.7]} 55... h2 {[%clk
0:00:03.6]} 56. Be4 {[%clk 0:00:06.8]} 56... Rd7 {[%clk 0:00:03.8]} 57. b6
{[%clk 0:00:06.8]} 57... Bxb6 {[%clk 0:00:02.5]} 58. axb6 {[%clk 0:00:07]} 58...
Rxd6 {[%clk 0:00:02.8]} 59. b7 {[%clk 0:00:07.5]} 59... Rb6 {[%clk 0:00:03.1]}
60. Bh1 {[%clk 0:00:07.1]} 60... e5 {[%clk 0:00:03.4]} 61. c4 {[%clk 0:00:07.3]}
61... e4 {[%clk 0:00:03.6]} 0-1

[Event "Late-Titled-Tuesday-Blitz-April-30-2024"]
[Site "Chess.com"]
[Date "2024.04.30"]
[Round "7"]
[White "stepanosinovsky"]
[Black "Bala-Afiada"]
[Result "1/2-1/2"]
[WhiteElo "2345"]
[BlackElo "2002"]
[TimeControl "180+1"]
[EndTime "15:18:35 PDT"]
[Termination "Game drawn - insufficient material"]

1. Nf3 {[%clk 0:03:00.9]} 1... d5 {[%clk 0:02:59.8]} 2. g3 {[%clk 0:03:01.8]}
2... c5 {[%clk 0:02:59.8]} 3. Bg2 {[%clk 0:03:02.5]} 3... Nc6 {[%clk 0:03:00.5]}
4. O-O {[%clk 0:03:03.2]} 4... e5 {[%clk 0:03:00]} 5. d3 {[%clk 0:03:03.1]} 5...
Nf6 {[%clk 0:02:59.7]} 6. Nbd2 {[%clk 0:03:01.9]} 6... Be7 {[%clk 0:02:59.7]} 7.
e4 {[%clk 0:03:02.8]} 7... Be6 {[%clk 0:02:59.3]} 8. exd5 {[%clk 0:02:56]} 8...
Nxd5 {[%clk 0:02:57.9]} 9. Re1 {[%clk 0:02:56.2]} 9... f6 {[%clk 0:02:51.5]} 10.
c3 {[%clk 0:02:52.4]} 10... O-O {[%clk 0:02:44.4]} 11. d4 {[%clk 0:02:51.8]}
11... cxd4 {[%clk 0:02:44.4]} 12. cxd4 {[%clk 0:02:52.7]} 12... Qc7 {[%clk
0:02:28.2]} 13. dxe5 {[%clk 0:02:08.4]} 13... fxe5 {[%clk 0:02:27.1]} 14. Nc4
{[%clk 0:02:00.9]} 14... Rxf3 {[%clk 0:01:24.9]} 15. Qxf3 {[%clk 0:01:44.1]}
15... Nd4 {[%clk 0:01:21.4]} 16. Qxd5 {[%clk 0:01:43]} 16... Bxd5 {[%clk
0:01:14.1]} 17. Bxd5+ {[%clk 0:01:43.9]} 17... Kh8 {[%clk 0:01:08.6]} 18. Nxe5
{[%clk 0:01:43.9]} 18... Qc5 {[%clk 0:01:03.2]} 19. Nf7+ {[%clk 0:01:30]} 19...
Kg8 {[%clk 0:01:01.6]} 20. Re5 {[%clk 0:01:26.8]} 20... Bf6 {[%clk 0:00:56.4]}
21. Nd8+ {[%clk 0:01:20.5]} 21... Kf8 {[%clk 0:00:54.1]} 22. Ne6+ {[%clk
0:01:19.4]} 22... Nxe6 {[%clk 0:00:53]} 23. Be3 {[%clk 0:01:09.8]} 23... Bxe5
{[%clk 0:00:33.6]} 24. Bxc5+ {[%clk 0:01:08.8]} 24... Nxc5 {[%clk 0:00:34.5]}
25. Rb1 {[%clk 0:00:37.4]} 25... Rd8 {[%clk 0:00:29.3]} 26. Bc4 {[%clk
0:00:33.9]} 26... a6 {[%clk 0:00:21.4]} 27. b4 {[%clk 0:00:32.6]} 27... Ne4
{[%clk 0:00:18.7]} 28. Re1 {[%clk 0:00:32]} 28... Rd4 {[%clk 0:00:16.7]} 29. Bb3
{[%clk 0:00:29.1]} 29... Ke7 {[%clk 0:00:14.9]} 30. Bc2 {[%clk 0:00:28.2]} 30...
Kd6 {[%clk 0:00:10.4]} 31. Bxe4 {[%clk 0:00:27.6]} 31... Rxb4 {[%clk 0:00:10.5]}
32. Bxh7 {[%clk 0:00:27.4]} 32... Rb2 {[%clk 0:00:09.9]} 33. Rd1+ {[%clk
0:00:24.6]} 33... Kc5 {[%clk 0:00:10.3]} 34. Bg8 {[%clk 0:00:18.6]} 34... Bd4
{[%clk 0:00:10.1]} 35. Rf1 {[%clk 0:00:19.1]} 35... b5 {[%clk 0:00:09.1]} 36.
Kg2 {[%clk 0:00:19.4]} 36... a5 {[%clk 0:00:07.7]} 37. h4 {[%clk 0:00:20]} 37...
b4 {[%clk 0:00:08]} 38. g4 {[%clk 0:00:19.5]} 38... a4 {[%clk 0:00:07.3]} 39. g5
{[%clk 0:00:19.5]} 39... b3 {[%clk 0:00:07.6]} 40. axb3 {[%clk 0:00:19.4]} 40...
axb3 {[%clk 0:00:08.5]} 41. Kg3 {[%clk 0:00:19.8]} 41... Kb4 {[%clk 0:00:05.8]}
42. f4 {[%clk 0:00:20]} 42... Rc2 {[%clk 0:00:05.6]} 43. Bh7 {[%clk 0:00:19.8]}
43... Rc3+ {[%clk 0:00:05.9]} 44. Kg4 {[%clk 0:00:20]} 44... b2 {[%clk
0:00:06.5]} 45. h5 {[%clk 0:00:20.2]} 45... Rc1 {[%clk 0:00:06.7]} 46. Rf3
{[%clk 0:00:18.2]} 46... b1=Q {[%clk 0:00:06.3]} 47. Bxb1 {[%clk 0:00:18.2]}
47... Rxb1 {[%clk 0:00:07]} 48. Kf5 {[%clk 0:00:18.7]} 48... Rg1 {[%clk
0:00:06.4]} 49. Kg6 {[%clk 0:00:16.7]} 49... Kc5 {[%clk 0:00:05.9]} 50. Ra3
{[%clk 0:00:16.6]} 50... Rg4 {[%clk 0:00:05.2]} 51. Ra5+ {[%clk 0:00:16.2]}
51... Kd6 {[%clk 0:00:04.9]} 52. Rf5 {[%clk 0:00:15.8]} 52... Ke7 {[%clk
0:00:04.5]} 53. Rf7+ {[%clk 0:00:15.7]} 53... Ke6 {[%clk 0:00:04.8]} 54. Rxg7
{[%clk 0:00:14.5]} 54... Bxg7 {[%clk 0:00:05.1]} 55. Kxg7 {[%clk 0:00:14.9]}
55... Rxf4 {[%clk 0:00:05.8]} 56. g6 {[%clk 0:00:14.1]} 56... Rg4 {[%clk
0:00:06.4]} 57. h6 {[%clk 0:00:14.5]} 57... Kf5 {[%clk 0:00:07]} 58. h7 {[%clk
0:00:13.1]} 58... Rxg6+ {[%clk 0:00:07.4]} 59. Kh8 {[%clk 0:00:13.6]} 59... Rh6
{[%clk 0:00:07.7]} 60. Kg7 {[%clk 0:00:13.5]} 60... Rg6+ {[%clk 0:00:07.8]} 61.
Kh8 {[%clk 0:00:13.8]} 61... Rh6 {[%clk 0:00:07.4]} 62. Kg7 {[%clk 0:00:14.3]}
62... Rxh7+ {[%clk 0:00:07.8]} 63. Kxh7 {[%clk 0:00:13.8]} 1/2-1/2

[Event "Late-Titled-Tuesday-Blitz-April-30-2024"]
[Site "Chess.com"]
[Date "2024.04.30"]
[Round "7"]
[White "simaopdias"]
[Black "CDOEspiao"]
[Result "0-1"]
[WhiteElo "2342"]
[BlackElo "2541"]
[TimeControl "180+1"]
[EndTime "15:18:41 PDT"]
[Termination "CDOEspiao won by resignation"]

1. e4 {[%clk 0:03:00.3]} 1... c5 {[%clk 0:03:00]} 2. Nf3 {[%clk 0:03:00.9]} 2...
e6 {[%clk 0:03:00.5]} 3. d4 {[%clk 0:03:01.5]} 3... cxd4 {[%clk 0:03:01.4]} 4.
Nxd4 {[%clk 0:03:02]} 4... a6 {[%clk 0:03:02.2]} 5. c4 {[%clk 0:03:01.9]} 5...
Nf6 {[%clk 0:03:02]} 6. Bd3 {[%clk 0:03:01.7]} 6... Qc7 {[%clk 0:03:01.6]} 7.
O-O {[%clk 0:03:00.5]} 7... b6 {[%clk 0:03:01.9]} 8. Be3 {[%clk 0:02:58.3]} 8...
Be7 {[%clk 0:03:02]} 9. Nc3 {[%clk 0:02:56]} 9... d6 {[%clk 0:03:02.4]} 10. Rc1
{[%clk 0:02:55.9]} 10... Bb7 {[%clk 0:03:02.6]} 11. f3 {[%clk 0:02:55]} 11...
Nbd7 {[%clk 0:03:02.9]} 12. Qe2 {[%clk 0:02:55.1]} 12... Rc8 {[%clk 0:03:02.2]}
13. Rfd1 {[%clk 0:02:53.1]} 13... O-O {[%clk 0:03:01.9]} 14. Qf2 {[%clk
0:02:53.2]} 14... Qb8 {[%clk 0:03:02.2]} 15. Nb3 {[%clk 0:02:52.2]} 15... Bd8
{[%clk 0:03:02.2]} 16. Na4 {[%clk 0:02:38.8]} 16... Bc6 {[%clk 0:03:00.4]} 17.
Nc3 {[%clk 0:02:38.2]} 17... Re8 {[%clk 0:03:00.3]} 18. Nd4 {[%clk 0:02:36.4]}
18... Ba8 {[%clk 0:02:59.9]} 19. Nb3 {[%clk 0:02:36.8]} 19... Bc7 {[%clk
0:03:00]} 20. g3 {[%clk 0:02:32.9]} 20... d5 {[%clk 0:02:49.6]} 21. cxd5 {[%clk
0:02:30]} 21... exd5 {[%clk 0:02:50.5]} 22. Nxd5 {[%clk 0:02:17]} 22... Nxd5
{[%clk 0:02:50.6]} 23. exd5 {[%clk 0:02:16.1]} 23... Bxd5 {[%clk 0:02:39.7]} 24.
Bxa6 {[%clk 0:02:11]} 24... Qa8 {[%clk 0:02:26.1]} 25. Bxc8 {[%clk 0:02:06.1]}
25... Rxc8 {[%clk 0:02:26.9]} 26. Bf4 {[%clk 0:01:48.7]} 26... Bxf4 {[%clk
0:02:08.1]} 27. Rxc8+ {[%clk 0:01:49.6]} 27... Qxc8 {[%clk 0:02:08.6]} 28. Rxd5
{[%clk 0:01:47.8]} 28... Bh6 {[%clk 0:02:08.3]} 29. f4 {[%clk 0:01:39.9]} 29...
g6 {[%clk 0:02:05.5]} 30. Qd2 {[%clk 0:01:38.8]} 30... Nf8 {[%clk 0:02:01.7]}
31. Rd8 {[%clk 0:01:29.7]} 31... Qe6 {[%clk 0:01:53.8]} 32. Nd4 {[%clk
0:01:18.4]} 32... Qxa2 {[%clk 0:01:48.3]} 33. Nc6 {[%clk 0:01:13.2]} 33... Qb1+
{[%clk 0:01:39.9]} 34. Kg2 {[%clk 0:01:12.5]} 34... Qe4+ {[%clk 0:01:39.8]} 35.
Kh3 {[%clk 0:01:09.5]} 35... Qxc6 {[%clk 0:01:38.5]} 36. Qd6 {[%clk 0:00:55.1]}
36... Qb5 {[%clk 0:01:31.8]} 37. Qd2 {[%clk 0:00:50.1]} 37... Bg7 {[%clk
0:01:28.7]} 38. b4 {[%clk 0:00:45.4]} 38... Qf1+ {[%clk 0:01:25.1]} 39. Qg2
{[%clk 0:00:44.9]} 39... Qb1 {[%clk 0:01:20.4]} 40. Qd2 {[%clk 0:00:42.8]} 40...
h5 {[%clk 0:01:16.9]} 41. Kg2 {[%clk 0:00:42.7]} 41... Qe4+ {[%clk 0:01:16.3]}
42. Kf2 {[%clk 0:00:39.1]} 42... Bf6 {[%clk 0:01:15.3]} 43. Rc8 {[%clk
0:00:33.2]} 43... Bd4+ {[%clk 0:01:08.4]} 44. Kf1 {[%clk 0:00:31.9]} 44... Qh1+
{[%clk 0:00:40.4]} 45. Ke2 {[%clk 0:00:32.1]} 45... Qxh2+ {[%clk 0:00:40.6]} 46.
Kd1 {[%clk 0:00:32.4]} 46... Qh1+ {[%clk 0:00:38.1]} 47. Kc2 {[%clk 0:00:29.3]}
47... Qe4+ {[%clk 0:00:38.2]} 48. Kb3 {[%clk 0:00:15.3]} 48... Qe6+ {[%clk
0:00:36.8]} 49. Rc4 {[%clk 0:00:13.8]} 49... b5 {[%clk 0:00:35.7]} 50. Qxd4
{[%clk 0:00:14.3]} 50... bxc4+ {[%clk 0:00:36.1]} 51. Kc3 {[%clk 0:00:13.6]}
51... Nd7 {[%clk 0:00:31.2]} 52. b5 {[%clk 0:00:13.6]} 52... Nb6 {[%clk
0:00:21.7]} 53. Kb4 {[%clk 0:00:11.1]} 53... Nd5+ {[%clk 0:00:19.2]} 54. Kc5
{[%clk 0:00:11.3]} 54... c3 {[%clk 0:00:15.2]} 55. b6 {[%clk 0:00:08.2]} 55...
Qxb6+ {[%clk 0:00:13.9]} 0-1

[Event "Late-Titled-Tuesday-Blitz-April-30-2024"]
[Site "Chess.com"]
[Date "2024.04.30"]
[Round "7"]
[White "FairChess_on_YouTube"]
[Black "DominguezOnYoutube"]
[Result "1/2-1/2"]
[WhiteElo "3087"]
[BlackElo "2961"]
[TimeControl "180+1"]
[EndTime "15:18:42 PDT"]
[Termination "Game drawn by repetition"]

1. c4 {[%clk 0:03:00.9]} 1... e6 {[%clk 0:02:55.6]} 2. g3 {[%clk 0:02:57.4]}
2... Nf6 {[%clk 0:02:55.1]} 3. Bg2 {[%clk 0:02:57.5]} 3... d5 {[%clk 0:02:55.8]}
4. Nf3 {[%clk 0:02:56.8]} 4... Be7 {[%clk 0:02:56.1]} 5. O-O {[%clk 0:02:56.6]}
5... O-O {[%clk 0:02:56.7]} 6. cxd5 {[%clk 0:02:56.9]} 6... exd5 {[%clk
0:02:56.7]} 7. d3 {[%clk 0:02:57.5]} 7... Re8 {[%clk 0:02:56.2]} 8. Nbd2 {[%clk
0:02:56.5]} 8... c5 {[%clk 0:02:46.7]} 9. b3 {[%clk 0:02:56.4]} 9... Nc6 {[%clk
0:02:46.8]} 10. Bb2 {[%clk 0:02:55.5]} 10... b6 {[%clk 0:02:39.7]} 11. Rc1
{[%clk 0:02:53.2]} 11... Bb7 {[%clk 0:02:39.7]} 12. d4 {[%clk 0:02:53.2]} 12...
Bf8 {[%clk 0:02:27.8]} 13. Re1 {[%clk 0:02:49.9]} 13... Rc8 {[%clk 0:02:26.5]}
14. Bh3 {[%clk 0:02:47.5]} 14... Rc7 {[%clk 0:02:26.1]} 15. e3 {[%clk 0:02:41]}
15... Nb4 {[%clk 0:02:16.5]} 16. Bf1 {[%clk 0:02:41]} 16... Nxa2 {[%clk
0:02:07.8]} 17. Ra1 {[%clk 0:02:40.9]} 17... Nb4 {[%clk 0:02:08.2]} 18. Rxa7
{[%clk 0:02:40.8]} 18... Ne4 {[%clk 0:02:03.9]} 19. Bb5 {[%clk 0:02:26.4]} 19...
Bc6 {[%clk 0:01:56.3]} 20. Rxc7 {[%clk 0:02:26.1]} 20... Qxc7 {[%clk 0:01:56.3]}
21. Bxc6 {[%clk 0:02:25]} 21... Qxc6 {[%clk 0:01:55.2]} 22. Ne5 {[%clk
0:02:21.8]} 22... Qe6 {[%clk 0:01:39.4]} 23. Ndf3 {[%clk 0:02:21.6]} 23... f6
{[%clk 0:01:33.2]} 24. Nd3 {[%clk 0:02:21.1]} 24... Nxd3 {[%clk 0:01:29.6]} 25.
Qxd3 {[%clk 0:02:22]} 25... c4 {[%clk 0:01:30.1]} 26. Qc2 {[%clk 0:01:56.3]}
26... b5 {[%clk 0:01:30]} 27. Ra1 {[%clk 0:01:55.7]} 27... Qc6 {[%clk
0:01:30.3]} 28. bxc4 {[%clk 0:01:30]} 28... bxc4 {[%clk 0:01:23.4]} 29. Bc3
{[%clk 0:01:24.7]} 29... Ra8 {[%clk 0:01:21.6]} 30. Rxa8 {[%clk 0:01:22.7]}
30... Qxa8 {[%clk 0:01:22.5]} 31. Nd2 {[%clk 0:01:23]} 31... Nxd2 {[%clk
0:01:07]} 32. Bxd2 {[%clk 0:01:23.9]} 32... Qc6 {[%clk 0:00:45.7]} 33. Qf5
{[%clk 0:01:19.7]} 33... g6 {[%clk 0:00:44.5]} 34. Qc2 {[%clk 0:01:19.4]} 34...
Qb5 {[%clk 0:00:40.8]} 35. Qd1 {[%clk 0:01:16.9]} 35... Qb3 {[%clk 0:00:29.9]}
36. Qf3 {[%clk 0:01:16.4]} 36... c3 {[%clk 0:00:27.8]} 37. Bxc3 {[%clk
0:01:16.3]} 37... Qxc3 {[%clk 0:00:28.4]} 38. Qxd5+ {[%clk 0:01:05.8]} 38... Kh8
{[%clk 0:00:23.9]} 39. Qf7 {[%clk 0:01:00.9]} 39... Qc1+ {[%clk 0:00:23]} 40.
Kg2 {[%clk 0:01:00.8]} 40... Qc6+ {[%clk 0:00:22]} 41. Kg1 {[%clk 0:00:50.4]}
41... Qc1+ {[%clk 0:00:21.2]} 42. Kg2 {[%clk 0:00:50.5]} 42... Qc6+ {[%clk
0:00:21.6]} 43. Kg1 {[%clk 0:00:51.1]} 43... Qd6 {[%clk 0:00:21.6]} 44. h4
{[%clk 0:00:50.3]} 44... Qe7 {[%clk 0:00:20.9]} 45. Qd5 {[%clk 0:00:50.3]} 45...
Kg7 {[%clk 0:00:20.8]} 46. Kg2 {[%clk 0:00:48.4]} 46... Qf7 {[%clk 0:00:20.1]}
47. Qc6 {[%clk 0:00:48]} 47... h5 {[%clk 0:00:17.4]} 48. Kg1 {[%clk 0:00:47.4]}
48... Qe7 {[%clk 0:00:17.4]} 49. Qd5 {[%clk 0:00:47.3]} 49... Qd6 {[%clk
0:00:17.3]} 50. Qb7+ {[%clk 0:00:47.4]} 50... Be7 {[%clk 0:00:17.6]} 51. Qa8
{[%clk 0:00:47.7]} 51... Qe6 {[%clk 0:00:12.9]} 52. Qb7 {[%clk 0:00:47.7]} 52...
Kf7 {[%clk 0:00:10.5]} 53. Qa8 {[%clk 0:00:47.6]} 53... Kg7 {[%clk 0:00:10]} 54.
Qb7 {[%clk 0:00:47.8]} 54... g5 {[%clk 0:00:09.5]} 55. hxg5 {[%clk 0:00:47.2]}
55... fxg5 {[%clk 0:00:09.9]} 56. Qf3 {[%clk 0:00:40.7]} 56... g4 {[%clk
0:00:08.7]} 57. Qb7 {[%clk 0:00:39.9]} 57... Kf7 {[%clk 0:00:08.4]} 58. Qb1
{[%clk 0:00:39]} 58... Qg6 {[%clk 0:00:06.6]} 59. Qb3+ {[%clk 0:00:38.7]} 59...
Qe6 {[%clk 0:00:06]} 60. Qb1 {[%clk 0:00:37.5]} 60... Kg7 {[%clk 0:00:04.4]} 61.
Qb7 {[%clk 0:00:36.8]} 61... Kf7 {[%clk 0:00:02.8]} 62. Qa8 {[%clk 0:00:36.5]}
62... Qf5 {[%clk 0:00:02.6]} 63. Qa2+ {[%clk 0:00:34.8]} 63... Kg7 {[%clk
0:00:02.4]} 64. Qa7 {[%clk 0:00:34.8]} 64... Kf7 {[%clk 0:00:02.6]} 65. Qa2+
{[%clk 0:00:34.5]} 65... Kg7 {[%clk 0:00:02.5]} 66. Qa7 {[%clk 0:00:19.3]} 66...
Kf7 {[%clk 0:00:02.3]} 67. Qb7 {[%clk 0:00:18.1]} 67... Qe6 {[%clk 0:00:02.2]}
1/2-1/2

[Event "Late-Titled-Tuesday-Blitz-April-30-2024"]
[Site "Chess.com"]
[Date "2024.04.30"]
[Round "7"]
[White "patzer-reloaded"]
[Black "Cacriefils1984"]
[Result "1-0"]
[WhiteElo "2539"]
[BlackElo "2354"]
[TimeControl "180+1"]
[EndTime "15:18:42 PDT"]
[Termination "patzer-reloaded won by checkmate"]

1. d4 {[%clk 0:02:57.8]} 1... Nf6 {[%clk 0:02:59.4]} 2. c4 {[%clk 0:02:58]} 2...
g6 {[%clk 0:02:59.5]} 3. Nc3 {[%clk 0:02:58.3]} 3... Bg7 {[%clk 0:03:00.2]} 4.
e4 {[%clk 0:02:58.6]} 4... d6 {[%clk 0:03:00.8]} 5. Nf3 {[%clk 0:02:58.8]} 5...
O-O {[%clk 0:03:01.3]} 6. Be2 {[%clk 0:02:59.1]} 6... e5 {[%clk 0:03:01.5]} 7.
O-O {[%clk 0:02:59]} 7... Nc6 {[%clk 0:03:02]} 8. Be3 {[%clk 0:02:59.2]} 8...
Ng4 {[%clk 0:03:01.2]} 9. Bg5 {[%clk 0:02:59.3]} 9... f6 {[%clk 0:03:01.3]} 10.
Bc1 {[%clk 0:02:59.2]} 10... Nh6 {[%clk 0:02:57]} 11. Be3 {[%clk 0:02:56.9]}
11... Ng4 {[%clk 0:02:55.8]} 12. Bc1 {[%clk 0:02:56.6]} 12... Nh6 {[%clk
0:02:56.3]} 13. h3 {[%clk 0:02:56.7]} 13... Nf7 {[%clk 0:02:44.1]} 14. Be3
{[%clk 0:02:47.8]} 14... Bd7 {[%clk 0:02:20.6]} 15. Qd2 {[%clk 0:02:38.5]} 15...
f5 {[%clk 0:02:14.2]} 16. exf5 {[%clk 0:02:37.5]} 16... gxf5 {[%clk 0:02:14.1]}
17. dxe5 {[%clk 0:02:29.3]} 17... dxe5 {[%clk 0:02:15]} 18. Rfd1 {[%clk
0:02:25.5]} 18... Be6 {[%clk 0:02:01.9]} 19. Qxd8 {[%clk 0:02:14.4]} 19... Raxd8
{[%clk 0:02:00.7]} 20. Nd5 {[%clk 0:02:15.3]} 20... Rd7 {[%clk 0:01:51.2]} 21.
Ng5 {[%clk 0:01:45.2]} 21... Nxg5 {[%clk 0:01:44.8]} 22. Bxg5 {[%clk 0:01:46.1]}
22... Nd4 {[%clk 0:01:40.5]} 23. Bf1 {[%clk 0:01:33.1]} 23... h6 {[%clk
0:01:34.3]} 24. Be3 {[%clk 0:01:24.3]} 24... Nc2 {[%clk 0:01:19]} 25. Rac1
{[%clk 0:01:21.2]} 25... Nxe3 {[%clk 0:01:19]} 26. Nxe3 {[%clk 0:01:00.8]} 26...
Rfd8 {[%clk 0:01:19.3]} 27. Rxd7 {[%clk 0:00:58]} 27... Rxd7 {[%clk 0:01:20.2]}
28. Rd1 {[%clk 0:00:54.2]} 28... Rd4 {[%clk 0:01:03.8]} 29. Rxd4 {[%clk
0:00:32.4]} 29... exd4 {[%clk 0:01:04.7]} 30. Nd1 {[%clk 0:00:32.6]} 30... Kf7
{[%clk 0:00:55]} 31. f4 {[%clk 0:00:32.4]} 31... Ke7 {[%clk 0:00:50.3]} 32. b3
{[%clk 0:00:30.1]} 32... Kd6 {[%clk 0:00:50.7]} 33. Nf2 {[%clk 0:00:30.5]} 33...
a5 {[%clk 0:00:46.5]} 34. Nd3 {[%clk 0:00:29.3]} 34... Bd7 {[%clk 0:00:45.9]}
35. Be2 {[%clk 0:00:27.6]} 35... Bc6 {[%clk 0:00:46]} 36. Kf2 {[%clk 0:00:27.5]}
36... Be4 {[%clk 0:00:45.7]} 37. g4 {[%clk 0:00:23.3]} 37... Bf6 {[%clk
0:00:44.1]} 38. Kg3 {[%clk 0:00:16.2]} 38... c6 {[%clk 0:00:34.3]} 39. Ne1
{[%clk 0:00:15.9]} 39... Kc5 {[%clk 0:00:30]} 40. Nd3+ {[%clk 0:00:14.8]} 40...
Kd6 {[%clk 0:00:16]} 41. Nf2 {[%clk 0:00:12.2]} 41... Bb1 {[%clk 0:00:14.9]} 42.
a4 {[%clk 0:00:08.9]} 42... Kc5 {[%clk 0:00:13.6]} 43. Bd3 {[%clk 0:00:08.4]}
43... Ba2 {[%clk 0:00:03.8]} 44. Bxf5 {[%clk 0:00:05.6]} 44... Bxb3 {[%clk
0:00:04.1]} 45. Ne4+ {[%clk 0:00:06.1]} 45... Kb4 {[%clk 0:00:04.2]} 46. Nxf6
{[%clk 0:00:07]} 46... Kxc4 {[%clk 0:00:03]} 47. g5 {[%clk 0:00:07.5]} 47... d3
{[%clk 0:00:03.5]} 48. gxh6 {[%clk 0:00:05.4]} 48... d2 {[%clk 0:00:03.5]} 49.
Bg4 {[%clk 0:00:05.2]} 49... Bc2 {[%clk 0:00:02.2]} 50. h7 {[%clk 0:00:04.8]}
50... Bxh7 {[%clk 0:00:01.8]} 51. Nxh7 {[%clk 0:00:05.7]} 51... b5 {[%clk
0:00:01.3]} 52. axb5 {[%clk 0:00:05.3]} 52... cxb5 {[%clk 0:00:02.2]} 53. f5
{[%clk 0:00:05.4]} 53... Kd5 {[%clk 0:00:02.2]} 54. f6 {[%clk 0:00:05.4]} 54...
Kd6 {[%clk 0:00:02.8]} 55. Bh5 {[%clk 0:00:04.3]} 55... d1=Q {[%clk 0:00:02.2]}
56. Bxd1 {[%clk 0:00:03.5]} 56... Ke6 {[%clk 0:00:03.1]} 57. Be2 {[%clk
0:00:03.7]} 57... b4 {[%clk 0:00:02.3]} 58. Bc4+ {[%clk 0:00:04.2]} 58... Kd6
{[%clk 0:00:02.7]} 59. Bb3 {[%clk 0:00:05.1]} 59... a4 {[%clk 0:00:03]} 60. f7
{[%clk 0:00:05.1]} 60... axb3 {[%clk 0:00:03.1]} 61. f8=Q+ {[%clk 0:00:05.5]}
61... Kd5 {[%clk 0:00:03.9]} 62. Qxb4 {[%clk 0:00:05.8]} 62... Ke5 {[%clk
0:00:01.6]} 63. Qxb3 {[%clk 0:00:06.7]} 63... Kf5 {[%clk 0:00:02]} 64. Qf3+
{[%clk 0:00:05.6]} 64... Kg6 {[%clk 0:00:02.5]} 65. Qg4+ {[%clk 0:00:05.6]}
65... Kxh7 {[%clk 0:00:02.7]} 66. Kf4 {[%clk 0:00:05.6]} 66... Kh8 {[%clk
0:00:03.5]} 67. Kf5 {[%clk 0:00:06.1]} 67... Kh7 {[%clk 0:00:04.4]} 68. Kf6
{[%clk 0:00:06.7]} 68... Kh8 {[%clk 0:00:05.3]} 69. Qg7# {[%clk 0:00:06.6]} 1-0